bitfinex/quotes_SOLUSD_20250902
["timestamp","ask_amount","ask_price","bid_price","bid_amount"]
[1756837078786,0.68,204.31,204.29,0.03]
[1756837079171,0.68,204.3,204.29,0.03]
[1756837079776,4.89428347,204.32,204.29,3.25553971]
[1756837079984,0.68,204.31,204.29,3.25553971]
[1756837080305,4.89427407,204.33,204.3,3.22553971]
[1756837080479,4.89427407,204.33,204.32,3.22553971]
[1756837080675,0.06,204.34,204.32,3.22553971]
[1756837080885,0.06,204.34,204.33,3.22553971]
[1756837081408,4.95380444,204.34,204.33,3.22553971]
[1756837081609,0.06,204.34,204.3,13.59559401]
[1756837081775,4.95389549,204.34,204.33,3.22553971]
[1756837082918,4.95389549,204.34,204.29,0.03]
[1756837082919,3.96553971,204.34,204.29,0.03]
[1756837083091,0.68,204.33,204.29,3.25553971]
[1756837083285,0.68,204.32,204.29,0.03]
[1756837083680,0.68,204.31,204.29,0.03]
[1756837083996,0.06,204.34,204.3,3.22553971]
[1756837084200,0.68,204.31,204.29,3.25553971]
[1756837084381,0.68,204.3,204.29,0.03]
[1756837084587,3.90553971,204.3,204.29,0.03]
[1756837084808,8.80030231,204.3,204.29,0.03]
[1756837085085,48.10030231,204.3,204.29,0.03]
[1756837085309,48.10030231,204.3,204.28,1e-08]
[1756837085512,3.50986285,204.29,204.23,0.03]
[1756837085816,0.28432314,204.29,204.23,0.03]
[1756837086029,3.22553971,204.24,204.23,0.03]
[1756837086200,3.90553971,204.24,204.23,0.03]
[1756837086385,0.68,204.24,204.23,0.03]
[1756837086794,4.89620054,204.24,204.23,0.03]
[1756837087586,4.89593291,204.26,204.23,8.09856861]
[1756837088291,4.89593291,204.26,204.24,8.06856861]
[1756837088688,4.89593291,204.26,204.23,0.03]
[1756837088920,4.89524182,204.28,204.23,8.09856861]
[1756837089092,0.68,204.27,204.23,0.03]
[1756837089597,0.68,204.26,204.23,8.09856861]
[1756837089800,0.68,204.26,204.23,0.03]
[1756837089998,0.68,204.25,204.23,0.03]
[1756837090389,0.68,204.24,204.23,0.03]
[1756837090902,13.64476915,204.24,204.23,0.03]
[1756837091219,13.92909229,204.24,204.22,1e-08]
[1756837091388,73.65289175,204.23,204.22,1e-08]
[1756837091588,0.28432314,204.22,204.17,0.03]
[1756837091822,0.72,204.21,204.17,0.03]
[1756837092515,4.89715964,204.2,204.17,0.03]
[1756837093015,0.72,204.19,204.17,0.03]
[1756837093194,39.3,204.18,204.17,0.03]
[1756837093594,40.02,204.18,204.17,0.03]
[1756837095195,44.91763933,204.18,204.17,0.03]
[1756837096391,44.19763933,204.18,204.17,0.03]
[1756837096818,44.91763933,204.18,204.17,0.03]
[1756837097907,57.10357145,204.18,204.17,1e-08]
[1756837099034,17.08357145,204.18,204.17,1e-08]
[1756837099212,56.38357145,204.18,204.17,1e-08]
[1756837099412,4.89763933,204.18,204.17,1e-08]
[1756837099607,44.19763933,204.18,204.17,1e-08]
[1756837100022,4.89763933,204.18,204.17,1e-08]
[1756837101414,4.89739948,204.19,204.17,1e-08]
[1756837101640,51.48593212,204.2,204.18,12.18593212]
[1756837101641,4.8971912,204.2,204.18,12.18593212]
[1756837101930,4.8971912,204.2,204.18,12.88593212]
[1756837102134,4.8971912,204.2,204.18,0.7]
[1756837102318,4.8971912,204.2,204.18,12.88593212]
[1756837103139,4.8971912,204.2,204.18,12.18593212]
[1756837103325,39.3,204.22,204.19,12.88593212]
[1756837103509,4.89691983,204.21,204.18,12.18593212]
[1756837104023,4.89691983,204.21,204.18,12.88593212]
[1756837104219,4.89691983,204.21,204.18,12.91593212]
[1756837105557,4.89691983,204.21,204.19,0.7]
[1756837105932,44.19663275,204.23,204.18,12.21593212]
[1756837106353,44.19663275,204.23,204.18,12.91593212]
[1756837106561,44.19663275,204.23,204.18,0.73]
[1756837106734,44.19663275,204.23,204.18,12.91593212]
[1756837107329,4.89625151,204.24,204.22,12.18593212]
[1756837107553,4.89625151,204.24,204.19,0.7]
[1756837107554,5.76256916,204.23,204.18,0.03]
[1756837107858,39.3,204.22,204.18,0.03]
[1756837108036,5.04256916,204.19,204.18,0.03]
[1756837108240,44.34256916,204.19,204.18,1e-08]
[1756837108552,45.06256916,204.19,204.18,1e-08]
[1756837109056,45.3468923,204.19,204.18,1e-08]
[1756837109628,50.24429178,204.19,204.18,1e-08]
[1756837110738,0.28432314,204.18,204.13,0.03]
[1756837111058,5.04256916,204.14,204.13,0.03]
[1756837111248,40.02,204.14,204.04,0.7]
[1756837111423,39.3,204.13,204.07,5.04256916]
[1756837111644,4.89931899,204.11,204.07,5.74256916]
[1756837111942,44.19904824,204.13,204.1,5.04256916]
[1756837112252,44.19904824,204.13,204.1,0.7]
[1756837112651,39.3,204.13,204.11,0.7]
[1756837113043,39.3,204.13,204.09,0.7]
[1756837113247,39.3,204.14,204.1,5.74256916]
[1756837113546,39.3,204.14,204.11,0.7]
[1756837114154,4.89883897,204.13,204.11,0.7]
[1756837114850,4.89883897,204.13,204.08,39.59559401]
[1756837115150,4.89883897,204.13,204.09,5.74256916]
[1756837115355,40.02,204.12,204.04,13.59559401]
[1756837115652,0.72,204.11,204.01,0.7]
[1756837115827,0.72,204.11,204.02,5.04256916]
[1756837116027,5.04256916,204.07,204.01,0.7]
[1756837116355,44.20051945,204.06,204.02,26.0]
[1756837116532,44.20051945,204.06,204.03,0.7]
[1756837116928,4.90020746,204.08,204.04,0.7]
[1756837117144,0.72,204.11,204.05,0.7]
[1756837117344,0.72,204.15,204.08,5.04256916]
[1756837117545,40.02,204.15,204.1,12.1900184]
[1756837117846,40.02,204.15,204.1,12.8900184]
[1756837117847,51.4900184,204.15,204.1,12.8900184]
[1756837118265,17.8086174,204.14,204.09,12.1900184]
[1756837118467,12.1900184,204.13,204.09,13.59559401]
[1756837118758,4.898599,204.14,204.09,12.1900184]
[1756837118935,4.898599,204.14,204.1,0.7]
[1756837119135,12.1900184,204.13,204.08,25.78561241]
[1756837119456,5.618599,204.14,204.09,12.8900184]
[1756837119628,4.898599,204.14,204.09,12.8900184]
[1756837119828,4.898599,204.14,204.1,0.7]
[1756837120046,4.898599,204.14,204.09,12.1900184]
[1756837120225,4.898599,204.14,204.11,12.1900184]
[1756837120653,0.72,204.13,204.09,12.1900184]
[1756837120833,0.72,204.13,204.08,13.59559401]
[1756837121167,17.1450965,204.14,204.07,26.0]
[1756837121168,12.8500184,204.12,204.07,26.0]
[1756837121466,12.1900184,204.09,204.04,25.78561241]
[1756837121749,12.1900184,204.08,204.04,0.68]
[1756837121957,12.1900184,204.09,204.03,25.81561241]
[1756837122158,12.1900184,204.1,204.05,0.68]
[1756837122332,12.2500184,204.13,204.07,12.1900184]
[1756837122540,39.3,204.12,204.08,12.1900184]
[1756837122761,56.44894475,204.13,204.08,12.8700184]
[1756837122962,51.5500184,204.13,204.08,12.8700184]
[1756837123158,39.36,204.13,204.08,0.68]
[1756837123334,39.36,204.13,204.1,12.1900184]
[1756837123665,0.06,204.13,204.1,12.1900184]
[1756837123841,4.95894012,204.13,204.1,12.1900184]
[1756837124038,4.95894012,204.13,204.09,26.0]
[1756837124369,0.06,204.13,204.1,12.1900184]
[1756837125255,0.66,204.12,204.11,12.1900184]
[1756837125467,0.66,204.12,204.09,26.0]
[1756837125771,39.36,204.13,204.09,26.0]
[1756837126267,39.36,204.13,204.11,12.1900184]
[1756837126436,5.55907897,204.12,204.09,12.1900184]
[1756837126635,5.55907897,204.12,204.08,12.1900184]
[1756837126833,44.25889694,204.13,204.09,12.1900184]
[1756837127040,44.91889694,204.13,204.09,12.1900184]
[1756837127651,44.25889694,204.13,204.1,12.1900184]
[1756837127841,0.06,204.13,204.11,12.1900184]
[1756837128369,39.36,204.13,204.12,12.1900184]
[1756837128579,0.06,204.13,204.12,12.1900184]
[1756837128747,0.06,204.13,204.12,12.8700184]
[1756837129064,0.06,204.13,204.12,0.68]
[1756837129264,0.06,204.13,204.12,12.1900184]
[1756837129765,0.06,204.13,204.12,12.8700184]
[1756837129970,0.06,204.13,204.12,12.1900184]
[1756837130485,0.06,204.13,204.12,12.8700184]
[1756837131447,0.06,204.13,204.12,12.1900184]
[1756837131692,0.06,204.13,204.12,12.8700184]
[1756837131838,0.06,204.13,204.12,31.50685295]
[1756837132444,0.01341685,204.13,204.12,45.60115769]
[1756837132647,0.01341685,204.13,204.12,43.98119449]
[1756837132862,0.06,204.16,204.15,26.0]
[1756837133165,0.06,204.16,204.15,52.21209712]
[1756837133368,0.06,204.16,204.15,52.89209712]
[1756837133867,0.06,204.16,204.15,92.19209712]
[1756837134247,0.06,204.18,204.17,25.92777398]
[1756837134440,0.06,204.18,204.17,30.82565319]
[1756837134644,0.06,204.18,204.17,31.50565319]
[1756837135652,0.66,204.29,204.22,0.14216157]
[1756837135864,0.66,204.29,204.28,12.1900184]
[1756837136572,0.66,204.31,204.28,12.1900184]
[1756837136873,0.06,204.34,204.21,39.59559401]
[1756837136874,0.66,204.3,204.27,12.1900184]
[1756837137072,0.66,204.29,204.27,12.1900184]
[1756837137376,0.66,204.31,204.28,12.1900184]
[1756837137883,0.66,204.31,204.29,12.1900184]
[1756837138180,0.66,204.31,204.28,12.1900184]
[1756837138383,0.66,204.3,204.28,12.1900184]
[1756837138853,4.89431383,204.32,204.28,12.1900184]
[1756837139052,0.66,204.32,204.29,12.1900184]
[1756837139283,0.66,204.32,204.3,12.1900184]
[1756837139662,39.34,204.34,204.31,12.1900184]
[1756837139867,0.06,204.34,204.33,12.1900184]
[1756837140392,0.06,204.34,204.3,5.57466937]
[1756837140558,0.06,204.34,204.33,12.1900184]
[1756837141186,0.72,204.34,204.27,0.14216157]
[1756837141482,0.06,204.34,204.32,12.1900184]
[1756837141664,0.72,204.34,204.32,12.1900184]
[1756837141870,0.72,204.34,204.33,12.1900184]
[1756837142983,0.06,204.34,204.33,12.1900184]
[1756837143291,5.61388861,204.34,204.29,40.27559401]
[1756837143504,5.61388861,204.34,204.33,12.1900184]
[1756837143655,0.06,204.34,204.33,26.46561241]
[1756837146390,0.06,204.34,204.3,0.68]
[1756837146710,0.66,204.33,204.3,12.1900184]
[1756837146997,0.06,204.34,204.28,12.1900184]
[1756837146998,0.66,204.32,204.28,12.1900184]
[1756837147174,0.66,204.31,204.28,12.1900184]
[1756837147675,12.2500184,204.34,204.24,5.57619733]
[1756837147676,0.66,204.3,204.24,0.68]
[1756837148002,0.66,204.3,204.26,12.1900184]
[1756837148195,0.06,204.34,204.28,12.1900184]
[1756837148196,0.66,204.33,204.28,12.1900184]
[1756837148390,0.66,204.32,204.29,12.1900184]
[1756837148591,5.55443597,204.32,204.29,12.1900184]
[1756837148970,0.06,204.34,204.31,12.1900184]
[1756837149292,4.95380444,204.34,204.33,12.1900184]
[1756837149478,5.61380444,204.34,204.29,14.27559401]
[1756837149795,0.72,204.34,204.32,12.1900184]
[1756837149983,0.06,204.34,204.33,12.1900184]
[1756837150288,0.06,204.34,204.32,12.1900184]
[1756837150490,4.95381829,204.34,204.32,12.1900184]
[1756837150694,0.06,204.34,204.32,12.1900184]
[1756837150890,0.06,204.34,204.33,12.1900184]
[1756837151479,0.06,204.34,204.33,8.05974178]
[1756837151870,0.06,204.34,204.31,13.59559401]
[1756837152074,0.06,204.34,204.33,8.05974178]
[1756837152492,0.06,204.34,204.33,8.72974178]
[1756837152807,0.06,204.34,204.33,27.3615413]
[1756837152967,0.06,204.34,204.33,14.26559401]
[1756837153171,0.06,204.34,204.33,22.32533579]
[1756837156200,0.06,204.34,204.33,22.46749736]
[1756837156575,0.06,204.34,204.33,22.32533579]
[1756837157404,0.06,204.34,204.33,27.21937973]
[1756837157604,0.06,204.34,204.33,14.26559401]
[1756837157779,0.06,204.34,204.33,22.32533579]
[1756837158284,0.06,204.34,204.29,0.67]
[1756837158487,0.06,204.34,204.33,8.05974178]
[1756837158682,0.77,204.34,204.33,8.05974178]
[1756837158892,0.06,204.34,204.33,8.05974178]
[1756837159090,0.77,204.34,204.33,8.05974178]
[1756837159298,0.77,204.34,204.31,8.05974178]
[1756837159684,0.77,204.34,204.32,8.05974178]
[1756837159685,0.06,204.34,204.32,8.05974178]
[1756837159888,0.06,204.34,204.33,8.05974178]
[1756837160298,0.77,204.34,204.33,8.05974178]
[1756837160691,0.77,204.34,204.32,8.05974178]
[1756837161088,0.71,204.33,204.32,8.05974178]
[1756837161405,4.89428347,204.32,204.29,8.05974178]
[1756837161587,0.71,204.31,204.26,13.59559401]
[1756837161780,0.71,204.3,204.26,13.59559401]
[1756837161984,0.71,204.3,204.28,8.05974178]
[1756837162185,5.60428347,204.32,204.28,8.05974178]
[1756837162397,0.71,204.31,204.28,8.05974178]
[1756837162593,0.71,204.3,204.28,8.05974178]
[1756837162903,0.71,204.29,204.26,8.05974178]
[1756837163198,4.89524182,204.28,204.26,8.05974178]
[1756837163373,5.60524182,204.28,204.23,13.59559401]
[1756837163578,0.71,204.27,204.25,8.05974178]
[1756837163817,4.89524182,204.28,204.24,8.05974178]
[1756837163990,4.89524182,204.28,204.19,52.81559401]
[1756837163991,5.60524182,204.28,204.25,8.05974178]
[1756837166105,0.71,204.27,204.24,8.05974178]
[1756837166285,4.89524182,204.28,204.26,8.05974178]
[1756837166687,5.60524182,204.28,204.26,8.05974178]
[1756837166887,4.89524182,204.28,204.26,8.05974178]
[1756837167082,5.60483215,204.3,204.26,8.05974178]
[1756837167408,0.71,204.29,204.22,26.67]
[1756837167587,0.71,204.29,204.25,3.22667921]
[1756837167781,0.71,204.28,204.25,3.22667921]
[1756837169379,0.71,204.27,204.2,0.67]
[1756837169680,0.71,204.27,204.22,3.22667921]
[1756837169681,3.93667921,204.27,204.22,3.22667921]
[1756837169881,0.71,204.26,204.22,3.22667921]
[1756837170112,0.71,204.25,204.22,3.22667921]
[1756837170593,0.71,204.25,204.21,26.0]
[1756837171025,0.71,204.24,204.18,40.29559401]
[1756837171308,4.89596083,204.25,204.21,3.22667921]
[1756837171605,5.60596083,204.25,204.21,3.22667921]
[1756837172108,4.89596083,204.25,204.22,3.22667921]
[1756837172307,5.60596083,204.25,204.22,3.22667921]
[1756837172616,5.60596083,204.25,204.21,3.22667921]
[1756837173184,0.71,204.24,204.21,3.22667921]
[1756837173609,0.71,204.23,204.21,3.22667921]
[1756837173789,21.07210806,204.26,204.2,3.22667921]
[1756837174895,21.07210806,204.26,204.21,3.22667921]
[1756837175095,0.71,204.25,204.21,3.22667921]
[1756837175611,0.71,204.25,204.19,0.67]
[1756837175612,4.89572113,204.26,204.23,3.22667921]
[1756837175785,4.89524182,204.28,204.24,0.67]
[1756837176401,4.89524182,204.28,204.24,3.89667921]
[1756837176723,0.71,204.28,204.23,3.22667921]
[1756837177016,4.89548147,204.27,204.23,3.89667921]
[1756837177384,0.06,204.25,204.23,3.89667921]
[1756837177581,0.06,204.25,204.24,0.67]
[1756837177785,0.06,204.25,204.24,43.49227322]
[1756837178508,0.06,204.25,204.24,40.26559401]
[1756837178697,0.06,204.25,204.24,43.63443479]
[1756837179001,0.06,204.25,204.24,48.53063533]
[1756837180100,0.06,204.25,204.24,40.26559401]
[1756837180301,0.06,204.25,204.24,43.49227322]
[1756837181411,0.06,204.25,204.24,29.92667921]
[1756837182698,0.06,204.25,204.24,29.22667921]
[1756837183116,0.06,204.25,204.24,29.92667921]
[1756837184505,0.06,204.25,204.21,13.59559401]
[1756837184822,0.06,204.25,204.19,0.14216157]
[1756837184823,0.06,204.25,204.22,3.92667921]
[1756837185124,0.77,204.25,204.22,29.22667921]
[1756837185325,0.71,204.24,204.22,26.0]
[1756837185823,3.93667921,204.23,204.18,0.03]
[1756837186119,4.89668005,204.22,204.19,26.0]
[1756837186420,0.71,204.23,204.19,29.22667921]
[1756837186801,4.89644434,204.23,204.2,0.7]
[1756837187011,4.89644434,204.23,204.19,29.22667921]
[1756837187198,4.89644434,204.23,204.19,29.92667921]
[1756837187701,5.60644434,204.23,204.19,29.22667921]
[1756837187900,4.89644434,204.23,204.19,29.92667921]
[1756837188112,5.60644434,204.23,204.19,29.22667921]
[1756837188928,4.89620054,204.24,204.2,3.92667921]
[1756837189107,5.60620054,204.24,204.2,3.22667921]
[1756837190293,4.89620054,204.24,204.21,3.22667921]
[1756837191106,5.60620054,204.24,204.2,0.7]
[1756837191293,5.60620054,204.24,204.2,3.92667921]
[1756837191490,4.89620054,204.24,204.21,0.7]
[1756837191712,4.89620054,204.24,204.2,3.22667921]
[1756837191925,5.60620054,204.24,204.2,3.22667921]
[1756837192093,5.60620054,204.24,204.2,3.92667921]
[1756837192290,4.95596083,204.25,204.21,3.92667921]
[1756837192506,5.66596083,204.25,204.21,3.92667921]
[1756837192723,5.66596083,204.25,204.2,13.59559401]
[1756837192724,4.95596083,204.25,204.2,16.82227322]
[1756837192918,5.66596083,204.25,204.2,17.52227322]
[1756837195839,0.06,204.25,204.23,3.22667921]
[1756837196029,0.06,204.25,204.24,3.92667921]
[1756837197918,0.06,204.25,204.24,17.52227322]
[1756837198333,0.06,204.25,204.24,43.52227322]
[1756837198718,0.06,204.25,204.24,48.41847376]
[1756837198918,0.06,204.25,204.24,48.84495847]
[1756837199407,0.06,204.25,204.24,40.29559401]
[1756837199609,0.06,204.25,204.24,43.52227322]
[1756837200530,0.06,204.25,204.24,39.59559401]
[1756837200732,0.06,204.25,204.24,43.52227322]
[1756837201033,0.06,204.25,204.24,26.0]
[1756837201244,0.06,204.25,204.24,29.22667921]
[1756837201733,0.06,204.25,204.24,29.92667921]
[1756837201940,0.06,204.25,204.24,43.52227322]
[1756837202140,0.06,204.25,204.24,42.82227322]
[1756837202442,0.06,204.25,204.24,29.22667921]
[1756837202637,0.06,204.25,204.24,26.0]
[1756837203618,0.06,204.25,204.24,43.52227322]
[1756837204254,0.77,204.25,204.24,26.0]
[1756837204441,0.06,204.25,204.24,26.0]
[1756837204746,0.77,204.25,204.22,3.22667921]
[1756837204940,0.06,204.25,204.23,3.22667921]
[1756837205134,0.06,204.25,204.24,3.92667921]
[1756837205439,0.06,204.25,204.24,43.52227322]
[1756837206024,0.06,204.25,204.24,87.57847376]
[1756837206233,0.06,204.25,204.24,88.00495847]
[1756837206435,0.06,204.25,204.24,83.10875793]
[1756837206759,0.06,204.25,204.24,43.52227322]
[1756837207039,0.06,204.25,204.22,14.29559401]
[1756837207235,0.06,204.25,204.23,3.22667921]
[1756837207413,0.06,204.25,204.23,3.92667921]
[1756837207816,0.06,204.25,204.24,3.22667921]
[1756837208043,0.06,204.25,204.24,43.52227322]
[1756837208547,0.06,204.25,204.21,0.14216157]
[1756837208728,0.77,204.25,204.22,13.59559401]
[1756837209223,0.06,204.25,204.22,13.59559401]
[1756837209645,0.06,204.25,204.22,16.82227322]
[1756837209941,0.06,204.25,204.23,3.22667921]
[1756837210149,0.06,204.25,204.24,16.82227322]
[1756837210321,0.06,204.25,204.24,17.52227322]
[1756837210517,0.06,204.25,204.24,17.66443479]
[1756837210844,0.06,204.25,204.24,16.96443479]
[1756837211148,0.06,204.25,204.24,17.66443479]
[1756837211348,0.06,204.25,204.24,57.10875793]
[1756837211540,0.01372198,204.25,204.24,57.10875793]
[1756837212127,0.01372198,204.25,204.24,62.49457852]
[1756837212355,0.01372198,204.25,204.24,62.00495847]
[1756837213461,0.06,204.28,204.27,39.59559401]
[1756837213628,0.06,204.28,204.27,84.19880507]
[1756837213829,0.06,204.28,204.27,84.88880507]
[1756837214026,0.06,204.28,204.27,50.64428654]
[1756837214226,0.06,204.28,204.27,45.74880507]
[1756837214455,0.06,204.28,204.27,84.88880507]
[1756837215150,0.06,204.28,204.27,45.74880507]
[1756837215341,0.06,204.28,204.27,84.88880507]
[1756837216355,0.06,204.28,204.27,45.6066435]
[1756837216545,0.78,204.28,204.27,26.0]
[1756837216736,0.78,204.28,204.24,44.17672635]
[1756837216938,0.72,204.27,204.24,39.14]
[1756837217136,0.06,204.28,204.26,26.0]
[1756837217469,0.06,204.28,204.24,13.59559401]
[1756837217633,0.06,204.28,204.27,5.03672635]
[1756837218161,0.78,204.28,204.26,13.59559401]
[1756837218668,0.06,204.28,204.26,13.59559401]
[1756837218836,0.06,204.28,204.27,5.03672635]
[1756837219673,0.78,204.28,204.26,13.59559401]
[1756837219865,0.72,204.27,204.24,57.77232036]
[1756837220245,0.06,204.28,204.26,18.63232036]
[1756837220445,0.06,204.28,204.27,18.63232036]
[1756837221350,0.06,204.28,204.27,13.59559401]
[1756837221351,0.78,204.28,204.27,13.59559401]
[1756837221554,0.78,204.28,204.23,5.03672635]
[1756837221768,0.72,204.27,204.26,26.0]
[1756837222435,0.72,204.27,204.24,18.63232036]
[1756837222643,0.72,204.26,204.23,26.0]
[1756837222938,0.72,204.25,204.23,26.0]
[1756837223151,0.72,204.24,204.21,18.63232036]
[1756837223367,0.72,204.23,204.2,18.63232036]
[1756837223766,0.72,204.23,204.21,5.03672635]
[1756837224061,5.03672635,204.26,204.21,5.03672635]
[1756837224062,5.75672635,204.26,204.21,5.03672635]
[1756837224246,0.72,204.25,204.21,5.03672635]
[1756837224452,0.72,204.27,204.23,5.03672635]
[1756837224653,0.72,204.26,204.23,5.03672635]
[1756837224974,5.615731,204.26,204.23,5.03672635]
[1756837225966,5.615731,204.26,204.21,0.69]
[1756837226280,5.615731,204.26,204.22,5.03672635]
[1756837226578,0.72,204.25,204.22,5.03672635]
[1756837226738,0.72,204.25,204.21,5.72672635]
[1756837227069,4.89608601,204.25,204.21,5.72672635]
[1756837227276,4.89608601,204.25,204.22,5.03672635]
[1756837227440,4.95526467,204.28,204.24,5.03672635]
[1756837227643,4.95526467,204.28,204.24,26.69]
[1756837227644,0.06,204.28,204.24,26.69]
[1756837227962,0.06,204.28,204.25,5.03672635]
[1756837227963,0.78,204.28,204.25,5.03672635]
[1756837228182,0.78,204.28,204.24,26.0]
[1756837228456,5.67527004,204.28,204.24,26.0]
[1756837228663,5.67527004,204.28,204.25,5.03672635]
[1756837229038,0.06,204.28,204.27,5.03672635]
[1756837229242,0.06,204.28,204.26,0.69]
[1756837229445,0.72,204.27,204.24,39.59559401]
[1756837230140,4.95537498,204.28,204.24,39.59559401]
[1756837230444,0.06,204.28,204.26,5.03672635]
[1756837230656,0.06,204.28,204.27,5.03672635]
[1756837231470,0.06,204.28,204.26,5.72672635]
[1756837231645,0.06,204.28,204.27,14.28559401]
[1756837231849,0.06,204.28,204.26,5.03672635]
[1756837232646,0.06,204.28,204.27,5.72672635]
[1756837233869,0.06,204.28,204.27,45.32232036]
[1756837234245,0.06,204.28,204.27,44.63232036]
[1756837234742,0.06,204.28,204.27,39.59559401]
[1756837234944,0.06,204.28,204.27,44.63232036]
[1756837235148,0.78,204.28,204.25,0.03]
[1756837235353,0.72,204.27,204.25,0.03]
[1756837235544,0.06,204.28,204.25,0.03]
[1756837235754,0.06,204.28,204.27,18.63232036]
[1756837236346,0.06,204.28,204.27,5.03672635]
[1756837236795,0.06,204.28,204.26,5.03672635]
[1756837236975,0.06,204.28,204.27,5.03672635]
[1756837237369,0.06,204.28,204.27,5.72672635]
[1756837237567,0.06,204.28,204.27,45.46448193]
[1756837237752,0.06,204.28,204.27,45.74880507]
[1756837238068,0.06,204.28,204.27,44.63232036]
[1756837238272,0.06,204.28,204.27,45.32232036]
[1756837238574,0.06,204.28,204.27,45.46448193]
[1756837239172,0.06,204.28,204.27,44.63232036]
[1756837239472,0.06,204.28,204.27,50.64428654]
[1756837239773,0.06,204.28,204.27,24.64428654]
[1756837240355,0.06,204.3,204.29,18.49059621]
[1756837240672,0.06,204.3,204.29,57.73232036]
[1756837241065,0.06,204.3,204.29,44.63232036]
[1756837241374,0.06,204.3,204.29,18.63232036]
[1756837241672,0.06,204.3,204.28,70.13672635]
[1756837241968,0.06,204.3,204.28,31.03672635]
[1756837242172,0.06,204.3,204.29,5.03672635]
[1756837242555,0.06,204.3,204.28,31.03672635]
[1756837242749,0.06,204.3,204.29,19.31232036]
[1756837243173,0.06,204.3,204.29,13.59559401]
[1756837243174,0.72,204.3,204.29,13.59559401]
[1756837243372,0.72,204.3,204.28,26.0]
[1756837243854,0.66,204.29,204.25,0.03]
[1756837244054,0.66,204.29,204.25,18.66232036]
[1756837244358,0.66,204.29,204.26,5.03672635]
[1756837244566,4.95486114,204.3,204.28,5.03672635]
[1756837244879,0.06,204.3,204.28,5.03672635]
[1756837245055,0.06,204.3,204.26,0.68]
[1756837245255,5.6147969,204.3,204.28,5.03672635]
[1756837245458,0.66,204.29,204.25,26.03]
[1756837245783,0.66,204.28,204.25,0.03]
[1756837245953,0.66,204.28,204.27,26.0]
[1756837246364,0.06,204.3,204.27,26.0]
[1756837246587,0.06,204.3,204.28,5.03672635]
[1756837246753,0.06,204.3,204.29,5.03672635]
[1756837247172,0.72,204.3,204.29,5.03672635]
[1756837247373,5.6147626,204.3,204.27,13.59559401]
[1756837247577,5.6147626,204.3,204.27,18.63232036]
[1756837247754,0.06,204.3,204.28,5.03672635]
[1756837248084,0.06,204.3,204.29,19.31232036]
[1756837248263,0.06,204.3,204.29,13.59559401]
[1756837248462,0.06,204.3,204.29,18.63232036]
[1756837249778,0.72,204.3,204.27,13.59559401]
[1756837250354,0.66,204.29,204.27,26.0]
[1756837250568,5.55511606,204.29,204.27,26.0]
[1756837251285,0.06,204.3,204.27,31.03672635]
[1756837251473,0.66,204.29,204.27,31.03672635]
[1756837252161,0.06,204.3,204.27,31.03672635]
[1756837252485,0.72,204.3,204.27,31.03672635]
[1756837252786,5.5550022,204.29,204.25,0.03]
[1756837252963,5.03672635,204.26,204.25,0.03]
[1756837253374,5.69672635,204.26,204.25,0.03]
[1756837254465,10.59244748,204.26,204.25,1e-08]
[1756837255616,4.89572113,204.26,204.25,1e-08]
[1756837255815,10.59244748,204.26,204.25,1e-08]
[1756837256396,0.06,204.3,204.25,5.71672636]
[1756837256586,0.06,204.3,204.26,0.68]
[1756837256781,0.06,204.3,204.28,5.03672635]
[1756837257018,0.06,204.3,204.27,5.03672635]
[1756837257503,0.06,204.3,204.29,5.03672635]
[1756837257812,0.06,204.3,204.29,5.71672635]
[1756837258186,0.06,204.3,204.28,5.03672635]